Workbook

Sheet 小分表
A1: 纳雍县2023年面向社会公开招聘村（居）专职人民调解员总成绩
A2: 姓名 | B2: 乡镇 | C2: 报考职位 | D2: 笔试成绩 | E2: 笔试成绩排名 | F2: 是否进入面试 | G2: 面试成绩 | H2: 总成绩 | I2: 是否进入体检 | J2: 备注
A3: 郭亮 | B3: 纳雍县雍熙街道 | C3: 001 | D3: 61.8 | E3: 6 | F3: 是 | I3: 否 | J3: 面试缺考
A4: 李藜 | B4: 纳雍县雍熙街道 | C4: 001 | D4: 77.32 | E4: 1 | F4: 是 | G4: 76.34 | H4: =D4*40%+G4*60% -> 76.73 | I4: 是
A5: 张梅 | B5: 纳雍县雍熙街道 | C5: 001 | D5: 46.47 | E5: 11 | F5: 是 | G5: 67.20 | H5: =D5*40%+G5*60% -> 58.91 | I5: 是
A6: 李政轩 | B6: 纳雍县雍熙街道 | C6: 001 | D6: 63.38 | E6: 5 | F6: 是 | I6: 否 | J6: 面试缺考
A7: 李丹 | B7: 纳雍县雍熙街道 | C7: 001 | D7: 52.4 | E7: 9 | F7: 是 | G7: 76.90 | H7: =D7*40%+G7*60% -> 67.10 | I7: 是
A8: 翟敏 | B8: 纳雍县雍熙街道 | C8: 001 | D8: 57.08 | E8: 7 | F8: 是 | G8: 76.00 | H8: =D8*40%+G8*60% -> 68.43 | I8: 是
A9: 卢刚 | B9: 纳雍县雍熙街道 | C9: 001 | D9: 56.37 | E9: 8 | F9: 是 | G9: 72.70 | H9: =D9*40%+G9*60% -> 66.17 | I9: 是
A10: 龚贵红 | B10: 纳雍县雍熙街道 | C10: 001 | D10: 77.04 | E10: 2 | F10: 是 | G10: 79.20 | H10: =D10*40%+G10*60% -> 78.34 | I10: 是
A11: 张群 | B11: 纳雍县雍熙街道 | C11: 001 | D11: 32.93 | E11: 12 | F11: 是 | G11: 68.62 | H11: =D11*40%+G11*60% -> 54.34 | I11: 是
A12: 张应江 | B12: 纳雍县雍熙街道 | C12: 001 | D12: 65.39 | E12: 4 | F12: 是 | I12: 否 | J12: 面试缺考
A13: 李长江 | B13: 纳雍县雍熙街道 | C13: 001 | D13: 49.8 | E13: 10 | F13: 是 | G13: 69.86 | H13: =D13*40%+G13*60% -> 61.84 | I13: 是
A14: 宋静 | B14: 纳雍县雍熙街道 | C14: 001 | D14: 66.68 | E14: 3 | F14: 是 | I14: 否 | J14: 面试缺考
A15: 何建 | B15: 纳雍县文昌街道 | C15: 002 | D15: 61.48 | E15: 6 | F15: 是 | I15: 否 | J15: 面试缺考
A16: 伍荣 | B16: 纳雍县文昌街道 | C16: 002 | D16: 60.46 | E16: 7 | F16: 是 | G16: 74.76 | H16: =D16*40%+G16*60% -> 69.04 | I16: 是
A17: 熊艳 | B17: 纳雍县文昌街道 | C17: 002 | D17: 49.75 | E17: 9 | F17: 是 | G17: 71.30 | H17: =D17*40%+G17*60% -> 62.68 | I17: 是
A18: 王菊 | B18: 纳雍县文昌街道 | C18: 002 | D18: 51.95 | E18: 8 | F18: 是 | G18: 70.20 | H18: =D18*40%+G18*60% -> 62.90 | I18: 是
A19: 李春华 | B19: 纳雍县文昌街道 | C19: 002 | D19: 66.88 | E19: 3 | F19: 是 | I19: 否 | J19: 面试缺考
A20: 陈玲 | B20: 纳雍县文昌街道 | C20: 002 | D20: 73.3 | E20: 1 | F20: 是 | I20: 否 | J20: 面试缺考
A21: 黄慧 | B21: 纳雍县文昌街道 | C21: 002 | D21: 45.66 | E21: 11 | F21: 是 | G21: 66.60 | H21: =D21*40%+G21*60% -> 58.22 | I21: 是
A22: 胡月月 | B22: 纳雍县文昌街道 | C22: 002 | D22: 49.21 | E22: 10 | F22: 是 | G22: 69.40 | H22: =D22*40%+G22*60% -> 61.32 | I22: 是
A23: 黄玲 | B23: 纳雍县文昌街道 | C23: 002 | D23: 62.12 | E23: 4 | F23: 是 | G23: 73.00 | H23: =D23*40%+G23*60% -> 68.65 | I23: 是
A24: 刘文 | B24: 纳雍县文昌街道 | C24: 002 | D24: 61.71 | E24: 5 | F24: 是 | G24: 75.00 | H24: =D24*40%+G24*60% -> 69.68 | I24: 是
A25: 李建坤 | B25: 纳雍县文昌街道 | C25: 002 | D25: 70.86 | E25: 2 | F25: 是 | I25: 否 | J25: 面试缺考
A26: 彭琴琴 | B26: 纳雍县文昌街道 | C26: 002 | D26: 31.47 | E26: 12 | F26: 是 | G26: 61.90 | H26: =D26*40%+G26*60% -> 49.73 | I26: 是
A27: 彭佑雪 | B27: 纳雍县居仁街道 | C27: 003 | D27: 46.6 | E27: 7 | F27: 是 | G27: 69.50 | H27: =D27*40%+G27*60% -> 60.34 | I27: 否
A28: 冯芳芳 | B28: 纳雍县居仁街道 | C28: 003 | D28: 61.71 | E28: 3 | F28: 是 | G28: 73.50 | H28: 68.78 | I28: 是
A29: 李浪 | B29: 纳雍县居仁街道 | C29: 003 | D29: 57.78 | E29: 5 | F29: 是 | G29: 76.66 | H29: 69.11 | I29: 是
A30: 李飞 | B30: 纳雍县居仁街道 | C30: 003 | D30: 17.04 | E30: 9 | F30: 是 | G30: 69.00 | H30: 48.22 | I30: 否
A31: 谭丹丹 | B31: 纳雍县居仁街道 | C31: 003 | D31: 74.22 | E31: 2 | F31: 是 | G31: 81.96 | H31: 78.86 | I31: 是
A32: 张永 | B32: 纳雍县居仁街道 | C32: 003 | D32: 48.97 | E32: 6 | F32: 是 | G32: 76.30 | H32: 65.37 | I32: 是
A33: 王枭 | B33: 纳雍县居仁街道 | C33: 003 | D33: 38.94 | E33: 8 | F33: 是 | I33: 否 | J33: 面试缺考
A34: 王成 | B34: 纳雍县居仁街道 | C34: 003 | D34: 79.15 | E34: 1 | F34: 是 | G34: 78.50 | H34: =D34*40%+G34*60% -> 78.76 | I34: 是
A35: 刘立 | B35: 纳雍县居仁街道 | C35: 003 | D35: 58.16 | E35: 4 | F35: 是 | G35: 74.46 | H35: =D35*40%+G35*60% -> 67.94 | I35: 是
A36: 杨娇娇 | B36: 纳雍县利园街道 | C36: 005 | D36: 55.71 | E36: 3 | F36: 是 | I36: 否 | J36: 面试缺考
A37: 李洪 | B37: 纳雍县利园街道 | C37: 005 | D37: 38.82 | E37: 5 | F37: 是 | G37: 57.60 | H37: =D37*40%+G37*60% -> 50.09 | I37: 否
A38: 吴喻凡 | B38: 纳雍县利园街道 | C38: 005 | D38: 57.11 | E38: 2 | F38: 是 | G38: 67.44 | H38: 63.31 | I38: 是
A39: 徐美 | B39: 纳雍县利园街道 | C39: 005 | D39: 65.35 | E39: 1 | F39: 是 | G39: 72.82 | H39: 69.83 | I39: 是
A40: 肖婷 | B40: 纳雍县利园街道 | C40: 005 | D40: 53.91 | E40: 4 | F40: 是 | G40: 72.50 | H40: 65.06 | I40: 是
A41: 张云洪 | B41: 纳雍县宣慰街道 | C41: 006 | D41: 54.52 | E41: 4 | F41: 是 | G41: 71.60 | H41: 64.77 | I41: 是
A42: 安敏 | B42: 纳雍县宣慰街道 | C42: 006 | D42: 48.13 | E42: 5 | F42: 是 | G42: 75.40 | H42: 64.49 | I42: 是
A43: 张鹏 | B43: 纳雍县宣慰街道 | C43: 006 | D43: 75.66 | E43: 1 | F43: 是 | G43: 76.20 | H43: 75.98 | I43: 是
A44: 杜婷 | B44: 纳雍县宣慰街道 | C44: 006 | D44: 69.83 | E44: 2 | F44: 是 | I44: 否 | J44: 面试缺考
A45: 郑仕杰 | B45: 纳雍县宣慰街道 | C45: 006 | D45: 57.37 | E45: 3 | F45: 是 | I45: 否 | J45: 面试缺考
A46: 向顺文 | B46: 纳雍县鬃岭镇 | C46: 007 | D46: 42.62 | E46: 3 | F46: 是 | G46: 74.80 | H46: =D46*40%+G46*60% -> 61.93 | I46: 是
A47: 蔡大松 | B47: 纳雍县鬃岭镇 | C47: 007 | D47: 42.54 | E47: 4 | F47: 是 | G47: 69.40 | H47: =D47*40%+G47*60% -> 58.66 | I47: 是
A48: 赵瑶瑶 | B48: 纳雍县鬃岭镇 | C48: 007 | D48: 54.33 | E48: 1 | F48: 是 | I48: 否 | J48: 面试缺考
A49: 赵阳阳 | B49: 纳雍县鬃岭镇 | C49: 007 | D49: 44.4 | E49: 2 | F49: 是 | I49: 否 | J49: 面试缺考
A50: 赵英平 | B50: 纳雍县鬃岭镇 | C50: 007 | D50: 27.3 | E50: 5 | F50: 是 | I50: 否 | J50: 面试缺考
A51: 胡永光 | B51: 纳雍县勺窝镇 | C51: 008 | D51: 46.23 | E51: 6 | F51: 是 | G51: 72.00 | H51: =D51*40%+G51*60% -> 61.69 | I51: 是
A52: 李雨文 | B52: 纳雍县勺窝镇 | C52: 008 | D52: 51.2 | E52: 5 | F52: 是 | G52: 76.80 | H52: =D52*40%+G52*60% -> 66.56 | I52: 是
A53: 余家兴 | B53: 纳雍县勺窝镇 | C53: 008 | D53: 71.98 | E53: 1 | F53: 是 | G53: 77.60 | H53: =D53*40%+G53*60% -> 75.35 | I53: 是
A54: 陈武举 | B54: 纳雍县勺窝镇 | C54: 008 | D54: 56.08 | E54: 4 | F54: 是 | G54: 80.80 | H54: =D54*40%+G54*60% -> 70.91 | I54: 是
A55: 张鼎涛 | B55: 纳雍县勺窝镇 | C55: 008 | D55: 61.22 | E55: 2 | F55: 是 | I55: 否 | J55: 面试缺考
A56: 穆华雪 | B56: 纳雍县勺窝镇 | C56: 008 | D56: 57.25 | E56: 3 | F56: 是 | I56: 否 | J56: 面试缺考
A57: 张群 | B57: 纳雍县阳长镇 | C57: 009 | D57: 56.17 | E57: 3 | F57: 是 | G57: 70.20 | H57: =D57*40%+G57*60% -> 64.59 | I57: 是
A58: 龙兴国 | B58: 纳雍县阳长镇 | C58: 009 | D58: 66.28 | E58: 2 | F58: 是 | G58: 79.40 | H58: =D58*40%+G58*60% -> 74.15 | I58: 是
A59: 杨扬 | B59: 纳雍县阳长镇 | C59: 009 | D59: 76.08 | E59: 1 | F59: 是 | I59: 否 | J59: 面试缺考
A60: 犹玉群 | B60: 纳雍县新房乡 | C60: 010 | D60: 64.5 | E60: 1 | F60: 是 | G60: 82.40 | H60: =D60*40%+G60*60% -> 75.24 | I60: 是
A61: 周仙 | B61: 纳雍县新房乡 | C61: 010 | D61: 39.85 | E61: 6 | F61: 是 | G61: 70.60 | H61: =D61*40%+G61*60% -> 58.30 | I61: 是
A62: 谢雪 | B62: 纳雍县新房乡 | C62: 010 | D62: 51.31 | E62: 4 | F62: 是 | G62: 73.80 | H62: =D62*40%+G62*60% -> 64.80 | I62: 是
A63: 赵影 | B63: 纳雍县新房乡 | C63: 010 | D63: 63.13 | E63: 3 | F63: 是 | G63: 72.40 | H63: =D63*40%+G63*60% -> 68.69 | I63: 是
A64: 彭雪霏 | B64: 纳雍县新房乡 | C64: 010 | D64: 63.42 | E64: 2 | F64: 是 | I64: 否 | J64: 面试缺考
A65: 陈恒阳 | B65: 纳雍县新房乡 | C65: 010 | D65: 51.02 | E65: 5 | F65: 是 | I65: 否 | J65: 面试缺考
A66: 曾鹏 | B66: 纳雍县百兴镇 | C66: 011 | D66: 48.14 | E66: 7 | F66: 是 | G66: 72.00 | H66: =D66*40%+G66*60% -> 62.46 | I66: 是
A67: 谢雨红 | B67: 纳雍县百兴镇 | C67: 011 | D67: 65.63 | E67: 1 | F67: 是 | G67: 79.80 | H67: 74.13 | I67: 是
A68: 胡小旋 | B68: 纳雍县百兴镇 | C68: 011 | D68: 56.08 | E68: 5 | F68: 是 | G68: 77.00 | H68: 68.63 | I68: 是
A69: 董奎 | B69: 纳雍县百兴镇 | C69: 011 | D69: 48.26 | E69: 6 | F69: 是 | G69: 82.60 | H69: 68.86 | I69: 是
A70: 刘韵 | B70: 纳雍县百兴镇 | C70: 011 | D70: 56.83 | E70: 4 | F70: 是 | G70: 76.80 | H70: 68.81 | I70: 是
A71: 汪志歆 | B71: 纳雍县百兴镇 | C71: 011 | D71: 45.41 | E71: 9 | F71: 是 | G71: 73.80 | H71: 62.44 | I71: 是
A72: 汪湘菲 | B72: 纳雍县百兴镇 | C72: 011 | D72: 64.82 | E72: 2 | F72: 是 | I72: 否 | J72: 面试缺考
A73: 吴莎 | B73: 纳雍县百兴镇 | C73: 011 | D73: 56.98 | E73: 3 | F73: 是 | I73: 否 | J73: 面试缺考
A74: 胡雍 | B74: 纳雍县百兴镇 | C74: 011 | D74: 47.56 | E74: 8 | F74: 是 | I74: 否 | J74: 面试缺考
A75: 黄鹏 | B75: 纳雍县曙光镇 | C75: 012 | D75: 69.67 | E75: 2 | F75: 是 | G75: 75.30 | H75: =D75*40%+G75*60% -> 73.05 | I75: 是
A76: 管伟 | B76: 纳雍县曙光镇 | C76: 012 | D76: 56.86 | E76: 10 | F76: 是 | G76: 66.20 | H76: 62.46 | I76: 是
A77: 李赟 | B77: 纳雍县曙光镇 | C77: 012 | D77: 37.53 | E77: 14 | F77: 是 | G77: 62.20 | H77: 52.33 | I77: 是
A78: 彭雍 | B78: 纳雍县曙光镇 | C78: 012 | D78: 57.74 | E78: 9 | F78: 是 | G78: 62.84 | H78: 60.80 | I78: 是
A79: 张有明 | B79: 纳雍县曙光镇 | C79: 012 | D79: 59.02 | E79: 6 | F79: 是 | G79: 66.10 | H79: 63.27 | I79: 是
A80: 李超 | B80: 纳雍县曙光镇 | C80: 012 | D80: 68.58 | E80: 3 | F80: 是 | G80: 73.60 | H80: 71.59 | I80: 是
A81: 张菊 | B81: 纳雍县曙光镇 | C81: 012 | D81: 50 | E81: 12 | F81: 是 | G81: 74.60 | H81: 64.76 | I81: 是
A82: 胡逸峰 | B82: 纳雍县曙光镇 | C82: 012 | D82: 57.83 | E82: 8 | F82: 是 | I82: 否 | J82: 面试缺考
A83: 姚玲 | B83: 纳雍县曙光镇 | C83: 012 | D83: 59.7 | E83: 5 | F83: 是 | I83: 否 | J83: 面试缺考
A84: 卢涛 | B84: 纳雍县曙光镇 | C84: 012 | D84: 63.71 | E84: 4 | F84: 是 | I84: 否 | J84: 面试缺考
A85: 王宇 | B85: 纳雍县曙光镇 | C85: 012 | D85: 35.22 | E85: 15 | F85: 是 | I85: 否 | J85: 面试缺考
A86: 李武 | B86: 纳雍县曙光镇 | C86: 012 | D86: 53.4 | E86: 11 | F86: 是 | I86: 否 | J86: 面试缺考
A87: 卢林屿 | B87: 纳雍县曙光镇 | C87: 012 | D87: 71.24 | E87: 1 | F87: 是 | G87: 80.50 | H87: =D87*40%+G87*60% -> 76.80 | I87: 是
A88: 李靖 | B88: 纳雍县曙光镇 | C88: 012 | D88: 41.52 | E88: 13 | F88: 是 | I88: 否 | J88: 面试缺考
A89: 吴雪 | B89: 纳雍县曙光镇 | C89: 012 | D89: 58.21 | E89: 7 | F89: 是 | G89: 71.00 | H89: =D89*40%+G89*60% -> 65.88 | I89: 是
A90: 姚家清 | B90: 纳雍县张家湾镇 | C90: 013 | D90: 45.07 | E90: 1 | F90: 是 | G90: 67.40 | H90: =D90*40%+G90*60% -> 58.47 | I90: 是
A91: 陈育钊 | B91: 纳雍县张家湾镇 | C91: 013 | D91: 44.65 | E91: 2 | F91: 是 | G91: 66.50 | H91: =D91*40%+G91*60% -> 57.76 | I91: 否
A92: 高丹丹 | B92: 纳雍县水东镇 | C92: 014 | D92: 59.7 | E92: 1 | F92: 是 | G92: 71.04 | H92: =D92*40%+G92*60% -> 66.50 | I92: 是
A93: 杨迅 | B93: 纳雍县水东镇 | C93: 014 | D93: 51.67 | E93: 5 | F93: 是 | G93: 73.50 | H93: 64.77 | I93: 是
A94: 张海 | B94: 纳雍县水东镇 | C94: 014 | D94: 59.39 | E94: 2 | F94: 是 | G94: 70.96 | H94: 66.33 | I94: 是
A95: 周光琴 | B95: 纳雍县水东镇 | C95: 014 | D95: 43.38 | E95: 8 | F95: 是 | G95: 60.90 | H95: 53.89 | I95: 否
A96: 陈勇 | B96: 纳雍县水东镇 | C96: 014 | D96: 47.05 | E96: 6 | F96: 是 | G96: 65.20 | H96: 57.94 | I96: 是
A97: 肖德华 | B97: 纳雍县水东镇 | C97: 014 | D97: 52.02 | E97: 4 | F97: 是 | G97: 73.12 | H97: 64.68 | I97: 是
A98: 杨建 | B98: 纳雍县水东镇 | C98: 014 | D98: 8.44 | E98: 9 | F98: 是 | G98: 53.00 | H98: 35.18 | I98: 否
A99: 余代群 | B99: 纳雍县水东镇 | C99: 014 | D99: 46.02 | E99: 7 | F99: 是 | G99: 60.44 | H99: 54.67 | I99: 是
A100: 卢立 | B100: 纳雍县水东镇 | C100: 014 | D100: 59.1 | E100: 3 | F100: 是 | I100: 否 | J100: 面试缺考
A101: 王荣民 | B101: 纳雍县乐治镇 | C101: 015 | D101: 49.97 | E101: 9 | F101: 是 | G101: 64.00 | H101: =D101*40%+G101*60% -> 58.39 | I101: 是
A102: 王雪 | B102: 纳雍县乐治镇 | C102: 015 | D102: 63.58 | E102: 2 | F102: 是 | I102: 否 | J102: 面试缺考
A103: 郭颖 | B103: 纳雍县乐治镇 | C103: 015 | D103: 57.46 | E103: 4 | F103: 是 | G103: 78.50 | H103: =D103*40%+G103*60% -> 70.08 | I103: 是
A104: 彭丽 | B104: 纳雍县乐治镇 | C104: 015 | D104: 51.73 | E104: 7 | F104: 是 | G104: 69.08 | H104: =D104*40%+G104*60% -> 62.14 | I104: 是
A105: 郑涛 | B105: 纳雍县乐治镇 | C105: 015 | D105: 63.28 | E105: 3 | F105: 是 | G105: 70.10 | H105: =D105*40%+G105*60% -> 67.37 | I105: 是
A106: 周桦 | B106: 纳雍县乐治镇 | C106: 015 | D106: 53.77 | E106: 6 | F106: 是 | G106: 64.10 | H106: =D106*40%+G106*60% -> 59.97 | I106: 是
A107: 汪勇 | B107: 纳雍县乐治镇 | C107: 015 | D107: 78.97 | E107: 1 | F107: 是 | G107: 76.30 | H107: =D107*40%+G107*60% -> 77.37 | I107: 是
A108: 何正华 | B108: 纳雍县乐治镇 | C108: 015 | D108: 56.54 | E108: 5 | F108: 是 | I108: 否 | J108: 面试缺考
A109: 何钦 | B109: 纳雍县乐治镇 | C109: 015 | D109: 50.91 | E109: 8 | F109: 是 | I109: 否 | J109: 面试缺考
A110: 张玲 | B110: 纳雍县玉龙坝镇 | C110: 016 | D110: 72.44 | E110: 2 | F110: 是 | G110: 75.70 | H110: =D110*40%+G110*60% -> 74.40 | I110: 是
A111: 张开 | B111: 纳雍县玉龙坝镇 | C111: 016 | D111: 72.47 | E111: 1 | F111: 是 | I111: 否 | J111: 面试缺考
A112: 李玉银 | B112: 纳雍县沙包镇 | C112: 017 | D112: 60.4 | E112: 1 | F112: 是 | G112: 78.60 | H112: =D112*40%+G112*60% -> 71.32 | I112: 是
A113: 郭谋谋 | B113: 纳雍县沙包镇 | C113: 017 | D113: 35.11 | E113: 3 | F113: 是 | G113: 70.60 | H113: =D113*40%+G113*60% -> 56.40 | I113: 是
A114: 高雄 | B114: 纳雍县沙包镇 | C114: 017 | D114: 27.09 | E114: 5 | F114: 是 | G114: 62.20 | H114: =D114*40%+G114*60% -> 48.16 | I114: 否
A115: 陈雨 | B115: 纳雍县沙包镇 | C115: 017 | D115: 49.41 | E115: 2 | F115: 是 | G115: 81.70 | H115: =D115*40%+G115*60% -> 68.78 | I115: 是
A116: 黄江 | B116: 纳雍县沙包镇 | C116: 017 | D116: 31.48 | E116: 4 | F116: 是 | I116: 否 | J116: 面试缺考
A117: 王蓉 | B117: 纳雍县寨乐镇 | C117: 018 | D117: 46.12 | E117: 2 | F117: 是 | G117: 68.00 | H117: =D117*40%+G117*60% -> 59.25 | I117: 是
A118: 王晶 | B118: 纳雍县寨乐镇 | C118: 018 | D118: 45.84 | E118: 3 | F118: 是 | I118: 否 | J118: 面试缺考
A119: 魏凯 | B119: 纳雍县寨乐镇 | C119: 018 | D119: 51.45 | E119: 1 | F119: 是 | I119: 否 | J119: 面试缺考
A120: 张鹏 | B120: 纳雍县化作乡 | C120: 019 | D120: 55.54 | E120: 5 | F120: 是 | G120: 63.40 | H120: =D120*40%+G120*60% -> 60.26 | I120: 否
A121: 李云贵 | B121: 纳雍县化作乡 | C121: 019 | D121: 71.49 | E121: 2 | F121: 是 | I121: 否 | J121: 面试缺考
A122: 左正刚 | B122: 纳雍县化作乡 | C122: 019 | D122: 30.75 | E122: 8 | F122: 是 | G122: 50.00 | H122: =D122*40%+G122*60% -> 42.30 | I122: 否
A123: 彭飘 | B123: 纳雍县化作乡 | C123: 019 | D123: 60.4 | E123: 4 | F123: 是 | G123: 81.80 | H123: 73.24 | I123: 是
A124: 陈雪 | B124: 纳雍县化作乡 | C124: 019 | D124: 67.3 | E124: 3 | F124: 是 | G124: 84.30 | H124: 77.50 | I124: 是
A125: 蒙果 | B125: 纳雍县化作乡 | C125: 019 | D125: 75.95 | E125: 1 | F125: 是 | G125: 74.00 | H125: 74.78 | I125: 是
A126: 胡志荣 | B126: 纳雍县化作乡 | C126: 019 | D126: 51.61 | E126: 6 | F126: 是 | G126: 70.00 | H126: 62.64 | I126: 是
A127: 万伦辉 | B127: 纳雍县化作乡 | C127: 019 | D127: 38.24 | E127: 7 | F127: 是 | G127: 75.20 | H127: 60.42 | I127: 是
A128: 张进东 | B128: 纳雍县董地乡 | C128: 020 | D128: 57.83 | E128: 4 | F128: 是 | G128: 70.60 | H128: 65.49 | I128: 否
A129: 彭菊 | B129: 纳雍县董地乡 | C129: 020 | D129: 65.69 | E129: 1 | F129: 是 | G129: 74.30 | H129: 70.86 | I129: 是
A130: 龙漂漂 | B130: 纳雍县董地乡 | C130: 020 | D130: 62.7 | E130: 3 | F130: 是 | G130: 81.60 | H130: 74.04 | I130: 是
A131: 胡文 | B131: 纳雍县董地乡 | C131: 020 | D131: 63.2 | E131: 2 | F131: 是 | G131: 71.40 | H131: 68.12 | I131: 是
A132: 李林 | B132: 纳雍县董地乡 | C132: 020 | D132: 46.47 | E132: 5 | F132: 是 | G132: 72.00 | H132: 61.79 | I132: 否
A133: 李涛 | B133: 纳雍县维新镇 | C133: 021 | D133: 62.08 | E133: 2 | F133: 是 | I133: 否 | J133: 面试缺考
A134: 熊旭祥 | B134: 纳雍县维新镇 | C134: 021 | D134: 66.56 | E134: 1 | F134: 是 | G134: 81.40 | H134: =D134*40%+G134*60% -> 75.46 | I134: 是
A135: 胡林 | B135: 纳雍县维新镇 | C135: 021 | D135: 50.37 | E135: 3 | F135: 是 | G135: 70.20 | H135: 62.27 | I135: 是
A136: 朱启超 | B136: 纳雍县厍东关乡 | C136: 022 | D136: 55.76 | E136: 3 | F136: 是 | G136: 79.80 | H136: 70.18 | I136: 否
A137: 宋秋 | B137: 纳雍县厍东关乡 | C137: 022 | D137: 74.18 | E137: 2 | F137: 是 | G137: 76.30 | H137: 75.45 | I137: 是
A138: 王豪 | B138: 纳雍县厍东关乡 | C138: 022 | D138: 76.66 | E138: 1 | F138: 是 | G138: 77.60 | H138: 77.22 | I138: 是
A139: 穆其虎 | B139: 纳雍县羊场乡 | C139: 023 | D139: 66.09 | E139: 2 | F139: 是 | G139: 61.40 | H139: 63.28 | I139: 否
A140: 杨洪贵 | B140: 纳雍县羊场乡 | C140: 023 | D140: 55.18 | E140: 4 | F140: 是 | G140: 74.60 | H140: 66.83 | I140: 是
A141: 余良 | B141: 纳雍县羊场乡 | C141: 023 | D141: 70.07 | E141: 1 | F141: 是 | G141: 83.60 | H141: 78.19 | I141: 是
A142: 罗锋 | B142: 纳雍县羊场乡 | C142: 023 | D142: 59.31 | E142: 3 | F142: 是 | G142: 75.20 | H142: 68.84 | I142: 是
A143: 罗清贵 | B143: 纳雍县羊场乡 | C143: 023 | D143: 54.96 | E143: 5 | F143: 是 | G143: 73.40 | H143: 66.02 | I143: 是
A144: 马义萍 | B144: 纳雍县羊场乡 | C144: 023 | D144: 50.83 | E144: 6 | F144: 是 | I144: 否 | J144: 面试缺考
A145: 蒋阳 | B145: 纳雍县锅圈岩乡 | C145: 024 | D145: 50.34 | E145: 3 | F145: 是 | G145: 72.20 | H145: =D145*40%+G145*60% -> 63.46 | I145: 是
A146: 甘美菊 | B146: 纳雍县锅圈岩乡 | C146: 024 | D146: 41.13 | E146: 8 | F146: 是 | G146: 67.00 | H146: =D146*40%+G146*60% -> 56.65 | I146: 是
A147: 黄家培 | B147: 纳雍县锅圈岩乡 | C147: 024 | D147: 63.29 | E147: 1 | F147: 是 | G147: 77.60 | H147: =D147*40%+G147*60% -> 71.88 | I147: 是
A148: 周会 | B148: 纳雍县锅圈岩乡 | C148: 024 | D148: 48.3 | E148: 5 | F148: 是 | G148: 72.20 | H148: =D148*40%+G148*60% -> 62.64 | I148: 是
A149: 黄黔钤 | B149: 纳雍县锅圈岩乡 | C149: 024 | D149: 55.21 | E149: 2 | F149: 是 | I149: 否 | J149: 面试缺考
A150: 黄鹏宇 | B150: 纳雍县锅圈岩乡 | C150: 024 | D150: 48.8 | E150: 4 | F150: 是 | I150: 否 | J150: 面试缺考
A151: 郭华文 | B151: 纳雍县锅圈岩乡 | C151: 024 | D151: 44.04 | E151: 6 | F151: 是 | I151: 否 | J151: 面试缺考
A152: 石美艳 | B152: 纳雍县锅圈岩乡 | C152: 024 | D152: 43.62 | E152: 7 | F152: 是 | I152: 否 | J152: 面试缺考
A153: 刘玉琴 | B153: 纳雍县姑开乡 | C153: 025 | D153: 59.61 | E153: 2 | F153: 是 | G153: 79.60 | H153: =D153*40%+G153*60% -> 71.60 | I153: 是
A154: 杨娅梅 | B154: 纳雍县姑开乡 | C154: 025 | D154: 44.57 | E154: 3 | F154: 是 | G154: 74.40 | H154: =D154*40%+G154*60% -> 62.47 | I154: 是
A155: 阮锋 | B155: 纳雍县姑开乡 | C155: 025 | D155: 62.14 | E155: 1 | F155: 是 | I155: 否 | J155: 面试缺考
A156: 符治江 | B156: 纳雍县龙场镇 | C156: 026 | D156: 28.84 | E156: 5 | F156: 是 | G156: 74.00 | H156: =D156*40%+G156*60% -> 55.94 | I156: 否
A157: 王雪 | B157: 纳雍县龙场镇 | C157: 026 | D157: 69.3 | E157: 1 | F157: 是 | G157: 81.60 | H157: 76.68 | I157: 是
A158: 陈鑫 | B158: 纳雍县龙场镇 | C158: 026 | D158: 67.26 | E158: 2 | F158: 是 | G158: 84.10 | H158: 77.36 | I158: 是
A159: 王荣 | B159: 纳雍县龙场镇 | C159: 026 | D159: 56.79 | E159: 3 | F159: 是 | G159: 73.00 | H159: 66.52 | I159: 是
A160: 曾磊 | B160: 纳雍县龙场镇 | C160: 026 | D160: 52.23 | E160: 4 | F160: 是 | G160: 73.20 | H160: 64.81 | I160: 否
A161: 付航 | B161: 纳雍县猪场乡 | C161: 027 | D161: 54.93 | E161: 1 | F161: 是 | G161: 74.10 | H161: 66.43 | I161: 是
A162: 彭佑鑫 | B162: 纳雍县猪场乡 | C162: 027 | D162: 42.51 | E162: 4 | F162: 是 | G162: 77.40 | H162: 63.44 | I162: 是
A163: 余春鹃 | B163: 纳雍县猪场乡 | C163: 027 | D163: 38.35 | E163: 5 | F163: 是 | G163: 40.00 | H163: 39.34 | I163: 否
A164: 陶亮超 | B164: 纳雍县猪场乡 | C164: 027 | D164: 52.07 | E164: 3 | F164: 是 | G164: 72.60 | H164: 64.39 | I164: 是
A165: 李兴 | B165: 纳雍县猪场乡 | C165: 027 | D165: 54.56 | E165: 2 | F165: 是 | I165: 否 | J165: 面试缺考
A166: 郭丽 | B166: 纳雍县昆寨乡 | C166: 028 | D166: 59.03 | E166: 4 | F166: 是 | G166: 74.80 | H166: =D166*40%+G166*60% -> 68.49 | I166: 是
A167: 张鹅 | B167: 纳雍县昆寨乡 | C167: 028 | D167: 61.97 | E167: 1 | F167: 是 | G167: 72.60 | H167: 68.35 | I167: 否
A168: 左署云 | B168: 纳雍县昆寨乡 | C168: 028 | D168: 61.26 | E168: 3 | F168: 是 | G168: 77.42 | H168: 70.96 | I168: 是
A169: 李兴才 | B169: 纳雍县昆寨乡 | C169: 028 | D169: 46.26 | E169: 5 | F169: 是 | G169: 67.00 | H169: 58.70 | I169: 否
A170: 刘娅 | B170: 纳雍县昆寨乡 | C170: 028 | D170: 61.84 | E170: 2 | F170: 是 | G170: 82.20 | H170: 74.06 | I170: 是
A171: 刘永 | B171: 纳雍县左鸠戛乡 | C171: 029 | D171: 69.84 | E171: 1 | F171: 是 | G171: 0.00 | H171: 27.94 | I171: 是
A172: 龙丁旺 | B172: 纳雍县左鸠戛乡 | C172: 029 | D172: 63.62 | E172: 2 | F172: 是 | I172: 否 | J172: 面试缺考
